bitfinex/quotes_SOLUSD_20241110
["timestamp","ask_amount","ask_price","bid_price","bid_amount"]
[1731227684192,16.0383,204.73,204.67,20.0]
[1731227684399,9.15006033,204.72,204.67,20.0]
[1731227686010,9.15006033,204.69,204.65,20.0]
[1731227688201,9.15006033,204.7,204.65,20.0]
[1731227691597,9.15006033,204.71,204.65,20.0]
[1731227691795,9.15006033,204.71,204.62,20.0]
[1731227691997,9.15006033,204.71,204.66,20.0]
[1731227692417,16.0383,204.73,204.66,20.0]
[1731227692715,9.15006033,204.71,204.66,20.0]
[1731227693215,9.15006033,204.72,204.66,20.0]
[1731227693416,16.0383,204.73,204.68,20.0]
[1731227693618,25.18836033,204.73,204.68,20.0]
[1731227694717,25.18836033,204.73,204.68,9.15006033]
[1731227694912,25.18836033,204.73,204.69,20.0]
[1731227695413,25.18836033,204.73,204.64,20.0]
[1731227695607,25.18836033,204.73,204.68,20.0]
[1731227696024,16.0383,204.73,204.68,20.0]
[1731227696527,25.18836033,204.73,204.68,20.0]
[1731227698414,16.0383,204.73,204.68,20.0]
[1731227698817,25.18836033,204.73,204.68,20.0]
[1731227699031,9.15006033,204.72,204.66,9.15006033]
[1731227699327,9.15006033,204.72,204.67,20.0]
[1731227699821,9.15006033,204.7,204.65,20.0]
[1731227701125,9.15006033,204.71,204.65,29.15006033]
[1731227701421,9.15006033,204.72,204.66,9.15006033]
[1731227701618,9.15006033,204.72,204.67,20.0]
[1731227702124,16.0383,204.73,204.65,29.15006033]
[1731227702333,9.15006033,204.71,204.65,29.15006033]
[1731227702619,9.15006033,204.71,204.65,20.0]
[1731227703016,9.15006033,204.72,204.67,20.0]
[1731227703623,25.18836033,204.73,204.68,20.0]
[1731227705504,15.026,204.8,204.72,29.15006033]
[1731227705706,15.026,204.8,204.67,0.1]
[1731227705707,15.026,204.8,204.75,20.0]
[1731227705909,24.17606033,204.8,204.75,20.0]
[1731227706108,9.15006033,204.79,204.75,20.0]
[1731227706331,9.15006033,204.79,204.74,20.0]
[1731227709720,9.15006033,204.79,204.68,11.23682638]
[1731227709721,9.15006033,204.75,204.69,9.15006033]
[1731227709913,23.776884,204.79,204.68,15.50988671]
[1731227709914,9.15006033,204.74,204.68,15.50988671]
[1731227710429,9.15006033,204.74,204.69,9.15006033]
[1731227711825,9.15006033,204.74,204.7,20.0]
[1731227713412,9.15006033,204.74,204.63,20.1]
[1731227713611,9.15006033,204.74,204.69,20.0]
[1731227713810,9.15006033,204.75,204.69,29.15006033]
[1731227714014,23.776884,204.79,204.71,20.0]
[1731227714321,9.15006033,204.76,204.71,20.0]
[1731227714522,9.15006033,204.73,204.71,20.0]
[1731227714830,9.15006033,204.74,204.64,20.0]
[1731227715039,9.15006033,204.74,204.69,20.0]
[1731227715528,9.15006033,204.75,204.69,29.15006033]
[1731227715841,9.15006033,204.75,204.71,20.0]
[1731227717729,9.15006033,204.75,204.69,9.15006033]
[1731227718113,9.15006033,204.75,204.7,20.0]
[1731227718715,9.15006033,204.72,204.66,20.0]
[1731227718910,9.15006033,204.71,204.66,20.0]
[1731227719434,9.15006033,204.71,204.66,29.15006033]
[1731227720934,9.15006033,204.72,204.66,29.15006033]
[1731227721835,9.15006033,204.71,204.66,29.15006033]
[1731227722037,9.15006033,204.71,204.66,20.0]
[1731227722215,9.15006033,204.69,204.66,20.0]
[1731227723240,23.776884,204.73,204.66,20.0]
[1731227723411,32.92694433,204.73,204.68,20.0]
[1731227723618,9.15006033,204.72,204.66,35.50988671]
[1731227724819,9.15006033,204.71,204.66,35.50988671]
[1731227725033,9.15006033,204.71,204.66,29.15006033]
[1731227725624,23.776884,204.73,204.61,20.0]
[1731227725823,9.15006033,204.71,204.66,20.0]
[1731227726645,9.15006033,204.71,204.61,24.877]
[1731227726944,9.15006033,204.71,204.66,20.0]
[1731227727725,9.15006033,204.71,204.63,20.0]
[1731227727941,9.15006033,204.71,204.66,20.0]
[1731227728138,23.776884,204.73,204.68,9.15006033]
[1731227728332,32.92694433,204.73,204.69,20.0]
[1731227728733,9.15006033,204.72,204.69,20.0]
[1731227729126,9.15006033,204.72,204.67,20.0]
[1731227730146,9.15006033,204.71,204.67,20.0]
[1731227730441,15.026,204.74,204.69,20.0]
[1731227730637,23.776884,204.73,204.71,20.0]
[1731227730845,15.026,204.74,204.71,20.0]
[1731227734738,15.026,204.74,204.71,29.15006033]
[1731227735943,15.026,204.74,204.72,9.15006033]
[1731227736126,9.15006033,204.79,204.73,35.50988671]
[1731227736327,16.5913,204.8,204.78,9.15006033]
[1731227736530,16.5913,204.8,204.79,20.0]
[1731227736727,16.5913,204.8,204.79,29.15006033]
[1731227737339,16.5913,204.8,204.73,6.35982638]
[1731227737340,16.5913,204.8,204.77,9.15006033]
[1731227737547,16.5913,204.8,204.78,9.15006033]
[1731227737733,16.5913,204.8,204.79,20.0]
[1731227739135,16.5913,204.8,204.74,20.0]
[1731227739330,16.5913,204.8,204.76,20.0]
[1731227739936,16.5913,204.8,204.76,29.15006033]
[1731227741354,16.5913,204.8,204.78,20.0]
[1731227741949,16.5913,204.8,204.78,29.15006033]
[1731227742838,16.5913,204.8,204.77,9.15006033]
[1731227743037,16.5913,204.8,204.74,20.0]
[1731227743243,16.5913,204.8,204.77,20.0]
[1731227744261,16.5913,204.8,204.77,9.15006033]
[1731227744457,16.5913,204.8,204.74,20.0]
[1731227744764,16.5913,204.8,204.78,20.0]
[1731227746244,16.5913,204.8,204.74,20.0]
[1731227746443,9.15006033,204.77,204.74,20.0]
[1731227747360,9.15006033,204.76,204.7,9.15006033]
[1731227748147,9.15006033,204.76,204.71,4.877]
[1731227748740,9.15006033,204.76,204.71,24.877]
[1731227750341,9.15006033,204.76,204.71,20.0]
[1731227750938,9.15006033,204.77,204.72,20.0]
[1731227751241,9.15006033,204.78,204.72,29.15006033]
[1731227752543,23.776884,204.79,204.73,9.15006033]
[1731227752845,32.92694433,204.79,204.74,20.0]
[1731227757665,9.15006033,204.78,204.74,20.0]
[1731227759154,9.15006033,204.78,204.73,20.0]
[1731227761784,9.15006033,204.77,204.73,20.0]
[1731227764687,9.15006033,204.74,204.69,20.0]
[1731227765070,9.15006033,204.73,204.69,20.0]
[1731227765486,9.15006033,204.73,204.68,15.50988671]
[1731227766370,9.15006033,204.71,204.68,6.35982638]
[1731227766572,9.15006033,204.71,204.65,9.15006033]
[1731227766873,9.15006033,204.71,204.65,6.35982638]
[1731227767073,9.15006033,204.71,204.65,15.50988671]
[1731227767275,15.8045,204.72,204.68,9.15006033]
[1731227767689,15.8045,204.72,204.7,20.0]
[1731227767881,9.15006033,204.76,204.7,29.15006033]
[1731227768187,23.776884,204.76,204.72,20.0]
[1731227768486,15.8045,204.77,204.75,20.0]
[1731227769379,15.8045,204.77,204.76,9.15006033]
[1731227769579,24.95456033,204.82,204.77,20.0]
[1731227769793,23.776884,204.81,204.77,29.15006033]
[1731227770282,23.776884,204.81,204.76,9.15006033]
[1731227770683,23.776884,204.81,204.77,20.0]
[1731227773620,32.92694433,204.81,204.77,20.0]
[1731227774307,32.92694433,204.81,204.76,20.0]
[1731227775611,32.92694433,204.81,204.73,20.0]
[1731227775824,32.92694433,204.81,204.76,20.0]
[1731227776825,9.15006033,204.8,204.71,26.35982638]
[1731227777003,23.776884,204.79,204.76,20.0]
[1731227777202,32.92694433,204.81,204.76,20.0]
[1731227779322,23.776884,204.81,204.76,9.15006033]
[1731227779635,23.776884,204.81,204.77,20.0]
[1731227781825,32.92694433,204.81,204.69,6.6598]
[1731227782031,32.92694433,204.81,204.77,20.0]
[1731227782233,23.776884,204.81,204.77,29.15006033]
[1731227785123,23.776884,204.81,204.77,20.0]
[1731227785330,23.776884,204.81,204.78,20.0]
[1731227786426,23.776884,204.81,204.78,9.15006033]
[1731227787339,23.776884,204.81,204.79,20.0]
[1731227787715,15.8045,204.82,204.79,29.15006033]
[1731227787920,15.743,204.87,204.77,20.0]
[1731227788434,15.743,204.87,204.83,9.15006033]
[1731227788625,15.743,204.87,204.82,9.15006033]
[1731227788934,15.743,204.87,204.83,20.0]
[1731227789136,23.776884,204.86,204.83,20.0]
[1731227790438,23.776884,204.86,204.76,6.35988938]
[1731227790439,9.15006033,204.85,204.77,20.0]
[1731227790639,32.92694433,204.86,204.82,20.0]
[1731227791835,32.92694433,204.86,204.77,20.0]
[1731227792040,32.92694433,204.86,204.81,20.0]
[1731227792441,32.92694433,204.86,204.81,29.15006033]
[1731227793818,23.776884,204.86,204.82,9.15006033]
[1731227794144,23.776884,204.86,204.83,20.0]
[1731227794747,23.776884,204.86,204.83,29.15006033]
[1731227794920,23.776884,204.86,204.77,20.0]
[1731227795427,23.776884,204.86,204.84,9.15006033]
[1731227795632,23.776884,204.86,204.83,9.15006033]
[1731227797037,23.776884,204.86,204.83,20.0]
[1731227797430,32.92694433,204.86,204.83,20.0]
[1731227797634,32.92694433,204.86,204.82,20.0]
[1731227797821,23.776884,204.86,204.82,9.15006033]
[1731227798144,23.776884,204.86,204.83,20.0]
[1731227807141,23.776884,204.86,204.76,6.35988938]
[1731227807142,9.15006033,204.84,204.77,20.0]
[1731227807645,9.15006033,204.84,204.8,20.0]
[1731227807844,9.15006033,204.85,204.8,20.0]
[1731227808023,23.776884,204.83,204.73,20.0]
[1731227808226,32.92694433,204.83,204.77,9.15006033]
[1731227808556,32.92694433,204.83,204.72,20.0]
[1731227808734,32.92694433,204.83,204.78,20.0]
[1731227809329,32.92694433,204.83,204.78,29.15006033]
[1731227809730,23.776884,204.83,204.78,29.15006033]
[1731227810647,23.776884,204.83,204.79,9.15006033]
[1731227810848,23.776884,204.84,204.8,20.0]
[1731227811439,23.776884,204.84,204.8,9.15006033]
[1731227811653,23.776884,204.85,204.81,20.0]
[1731227812935,23.776884,204.85,204.72,24.877]
[1731227813248,23.776884,204.85,204.81,20.0]
[1731227814556,23.776884,204.85,204.81,29.15006033]
[1731227815048,23.776884,204.86,204.82,9.15006033]
[1731227815253,9.15006033,204.85,204.74,20.0]
[1731227815448,32.92694433,204.86,204.81,20.0]
[1731227815952,23.776884,204.86,204.81,29.15006033]
[1731227816453,23.776884,204.86,204.82,20.0]
[1731227817145,23.776884,204.86,204.81,9.15006033]
[1731227817535,23.776884,204.86,204.82,20.0]
[1731227818937,32.92694433,204.86,204.8,9.15006033]
[1731227819137,32.92694433,204.86,204.81,20.0]
[1731227819343,9.15006033,204.84,204.81,20.0]
[1731227819655,23.776884,204.84,204.8,20.0]
[1731227820044,23.776884,204.84,204.8,9.15006033]
[1731227820361,23.776884,204.85,204.81,20.0]
[1731227820864,32.92694433,204.85,204.79,9.15006033]
[1731227821034,32.92694433,204.85,204.8,20.0]
[1731227821434,23.776884,204.85,204.8,9.15006033]
[1731227821665,23.776884,204.85,204.81,20.0]
[1731227823664,23.776884,204.86,204.81,20.0]
[1731227826564,16.1568,204.95,204.86,20.0]
[1731227826763,25.30686033,204.95,204.89,9.15006033]
[1731227827271,16.1568,204.95,204.91,20.0]
[1731227827761,25.30686033,204.95,204.91,20.0]
[1731227827938,25.30686033,204.95,204.9,20.0]
[1731227829361,9.15006033,204.93,204.79,20.0]
[1731227829564,9.15006033,204.93,204.88,20.0]
[1731227830346,9.15006033,204.93,204.81,20.0]
[1731227830545,9.15006033,204.92,204.88,20.0]
[1731227831151,9.15006033,204.93,204.87,29.15006033]
[1731227831355,9.15006033,204.93,204.87,9.15006033]
[1731227831542,9.15006033,204.93,204.88,20.0]
[1731227831947,9.15006033,204.94,204.88,29.15006033]
[1731227832148,32.92694433,204.93,204.88,20.0]
[1731227834473,9.15006033,204.92,204.88,20.0]
[1731227834848,32.92694433,204.94,204.88,9.15006033]
[1731227835048,32.92694433,204.94,204.89,20.0]
[1731227837166,9.15006033,204.93,204.87,9.15006033]
[1731227837366,9.15006033,204.92,204.88,20.0]
[1731227838470,9.15006033,204.92,204.87,20.0]
[1731227840374,16.1568,204.95,204.9,29.15006033]
[1731227840551,9.15006033,205.0,204.95,20.0]
[1731227840755,9.15006033,204.99,204.95,20.0]
[1731227840974,0.12549,205.0,204.95,20.0]
[1731227841151,0.12549,205.0,204.86,6.6504]
[1731227841152,9.15006033,204.96,204.91,20.0]
[1731227841347,0.12549,205.0,204.91,20.0]
[1731227841348,9.15006033,204.95,204.91,20.0]
[1731227841564,9.15006033,204.94,204.91,20.0]
[1731227842072,9.15006033,204.95,204.9,20.0]
[1731227845801,9.15006033,204.95,204.88,9.15006033]
[1731227845974,9.15006033,204.94,204.89,20.0]
[1731227846152,9.15006033,204.92,204.89,20.0]
[1731227846570,9.15006033,204.9,204.86,20.0]
[1731227847180,9.15006033,204.89,204.81,6.6601]
[1731227847369,9.15006033,204.88,204.82,9.15006033]
[1731227847562,9.15006033,204.88,204.79,5.08289369]
[1731227847880,9.15006033,204.88,204.82,9.15006033]
[1731227848262,23.902374,204.93,204.82,9.15006033]
[1731227848464,9.15006033,204.88,204.82,9.15006033]
[1731227849069,9.15006033,204.88,204.83,20.0]
[1731227851679,0.12549,204.93,204.83,20.0]
[1731227851680,9.15006033,204.89,204.83,29.15006033]
[1731227853982,16.4747,204.94,204.84,9.15006033]
[1731227854181,9.15006033,204.9,204.85,20.0]
[1731227855682,9.15006033,204.89,204.8,24.877]
[1731227855981,9.15006033,204.87,204.8,20.0]
[1731227856175,9.15006033,204.87,204.82,20.0]
[1731227856375,23.776884,204.93,204.82,20.0]
[1731227856585,9.15006033,204.88,204.82,20.0]
[1731227857288,9.15006033,204.87,204.8,20.0]
[1731227857481,9.15006033,204.87,204.82,20.0]
[1731227858076,9.15006033,204.88,204.83,20.0]
[1731227860382,9.15006033,204.86,204.8,20.0]
[1731227860569,9.15006033,204.85,204.8,20.0]
[1731227861588,9.15006033,204.85,204.79,20.0]
[1731227861885,9.15006033,204.85,204.79,9.15006033]
[1731227862067,9.15006033,204.85,204.8,20.0]
[1731227862986,9.15006033,204.85,204.77,20.0]
[1731227863388,9.15006033,204.85,204.76,7.50676917]
[1731227863587,9.15006033,204.83,204.76,0.84666917]
[1731227863890,9.15006033,204.8,204.76,0.84666917]
[1731227864189,9.15006033,204.77,204.66,6.6215]
[1731227864361,9.15006033,204.76,204.71,0.8459013]
[1731227864565,9.15006033,204.76,204.7,9.15006033]
[1731227865372,9.15006033,204.74,204.69,5.081025]
[1731227865982,9.15006033,204.75,204.69,14.23108533]
[1731227866284,9.15006033,204.76,204.7,9.15006033]
[1731227866484,16.1967,204.77,204.72,9.15006033]
[1731227866689,16.1967,204.77,204.73,20.0]
[1731227867071,25.34676033,204.77,204.72,20.0]
[1731227867785,9.15006033,204.76,204.72,20.0]
[1731227867992,9.15006033,204.74,204.7,20.0]
[1731227870401,9.15006033,204.75,204.7,20.0]
[1731227872378,9.15006033,204.76,204.7,29.15006033]
[1731227873685,16.1967,204.77,204.72,9.15006033]
[1731227873889,16.1967,204.77,204.73,20.0]
[1731227874573,25.34676033,204.77,204.72,20.0]
[1731227875826,25.34676033,204.77,204.73,9.15006033]
[1731227875827,16.1967,204.77,204.73,9.15006033]
[1731227876173,16.1967,204.77,204.74,20.0]
[1731227877077,16.1967,204.77,204.73,20.0]
[1731227879497,25.34676033,204.77,204.73,20.0]
[1731227880695,16.1967,204.77,204.73,20.0]
[1731227881295,16.1967,204.77,204.73,9.15006033]
[1731227881800,16.1967,204.77,204.74,20.0]
[1731227886887,16.1967,204.77,204.67,10.75161548]
[1731227886888,25.34676033,204.77,204.72,9.15006033]
[1731227887093,25.34676033,204.77,204.73,20.0]
[1731227888188,9.15006033,204.75,204.72,20.0]
[1731227888398,9.15006033,204.74,204.72,20.0]
[1731227889096,9.15006033,204.74,204.68,20.0]
[1731227889291,9.15006033,204.74,204.68,29.15006033]
[1731227891109,9.15006033,204.74,204.7,20.0]
[1731227891707,9.15006033,204.75,204.7,20.0]
[1731227892597,32.92694433,204.76,204.71,20.0]
[1731227893011,23.776884,204.76,204.72,9.15006033]
[1731227893183,23.776884,204.76,204.73,20.0]
[1731227894004,32.92694433,204.76,204.72,20.0]
[1731227896696,23.776884,204.76,204.72,20.0]
[1731227898209,16.1967,204.77,204.73,9.15006033]
[1731227898401,16.1967,204.77,204.67,10.75161548]
[1731227898402,15.893,204.82,204.77,20.0]
[1731227898591,15.893,204.82,204.79,20.0]
[1731227898794,15.893,204.82,204.77,29.15006033]
[1731227898992,15.893,204.86,204.82,20.0]
[1731227899197,9.15006033,204.85,204.82,20.0]
[1731227899510,15.893,204.86,204.8,20.0]
[1731227899803,25.04306033,204.86,204.8,29.15006033]
[1731227900692,23.776884,204.85,204.8,29.15006033]
[1731227901709,32.92694433,204.85,204.79,9.15006033]
[1731227902088,32.92694433,204.85,204.8,20.0]
[1731227902309,23.776884,204.85,204.8,9.15006033]
[1731227902601,23.776884,204.85,204.81,20.0]
[1731227902809,32.92694433,204.85,204.79,9.15006033]
[1731227903199,32.92694433,204.85,204.8,20.0]
[1731227904315,32.92694433,204.85,204.75,20.0]
[1731227904606,32.92694433,204.85,204.8,20.0]
[1731227905911,23.776884,204.85,204.8,20.0]
[1731227906607,23.776884,204.85,204.8,29.15006033]
[1731227906807,15.893,204.86,204.8,29.15006033]
[1731227907009,15.893,204.86,204.81,9.15006033]
[1731227907193,15.893,204.86,204.82,20.0]
[1731227907716,23.776884,204.85,204.81,20.0]
[1731227911128,32.92694433,204.85,204.81,20.0]
[1731227911413,32.92694433,204.85,204.8,20.0]
[1731227913023,23.776884,204.85,204.8,9.15006033]
[1731227913337,23.776884,204.85,204.81,9.15006033]
[1731227913702,23.776884,204.85,204.82,20.0]
[1731227915105,23.776884,204.85,204.81,9.15006033]
[1731227915106,9.15006033,204.84,204.8,20.0]
[1731227915608,9.15006033,204.81,204.7,11.54583428]
[1731227915795,23.776884,204.85,204.76,9.15006033]
[1731227916001,23.776884,204.82,204.76,9.15006033]
[1731227916496,9.15006033,204.85,204.79,9.15006033]
[1731227916692,23.776884,204.84,204.8,20.0]
[1731227919507,32.92694433,204.84,204.71,20.0]
[1731227919810,32.92694433,204.84,204.79,20.0]
[1731227920421,23.776884,204.84,204.79,9.15006033]
[1731227920621,23.776884,204.84,204.8,20.0]
[1731227921599,23.776884,204.85,204.8,29.15006033]
[1731227922100,23.776884,204.85,204.8,20.0]
[1731227924321,32.92694433,204.85,204.8,24.01555512]
[1731227924823,9.15006033,204.84,204.8,4.01555512]
[1731227925028,9.15006033,204.84,204.79,20.0]
[1731227926301,9.15006033,204.83,204.79,20.0]
[1731227926506,9.15006033,204.82,204.77,20.0]
[1731227927116,9.15006033,204.82,204.76,20.0]
[1731227928124,9.15006033,204.81,204.75,9.15006033]
[1731227928343,9.15006033,204.8,204.72,9.86395495]
[1731227928625,9.15006033,204.8,204.74,9.15006033]
[1731227928801,15.0111,204.79,204.74,9.15006033]
[1731227929009,24.16116033,204.79,204.72,19.01401528]
[1731227929204,24.16116033,204.79,204.72,9.86395495]
[1731227929521,9.15006033,204.74,204.72,4.18677051]
[1731227929706,9.15006033,204.76,204.69,9.15006033]
[1731227929909,9.15006033,204.76,204.7,9.15006033]
[1731227930106,0.12549,204.78,204.71,9.15006033]
[1731227930107,9.15006033,204.77,204.71,9.15006033]
[1731227930306,23.776884,204.76,204.71,9.15006033]
[1731227930608,9.15006033,204.77,204.72,20.0]
[1731227931622,33.05243433,204.78,204.72,9.15006033]
[1731227931821,15.0111,204.79,204.74,9.15006033]
[1731227932005,3.01057486,204.79,204.76,9.15006033]
[1731227932205,2.01057486,204.79,204.76,9.15006033]
[1731227932622,2.01057486,204.79,204.77,20.0]
[1731227932827,9.15006033,204.78,204.77,20.0]
[1731227933122,9.15006033,204.78,204.73,20.0]
[1731227933311,9.15006033,204.76,204.73,20.0]
[1731227933710,9.15006033,204.76,204.71,20.0]
[1731227933924,9.15006033,204.75,204.71,20.0]
[1731227934626,9.15006033,204.75,204.69,29.15006033]
[1731227935010,9.15006033,204.76,204.7,9.15006033]
[1731227935210,9.15006033,204.76,204.71,20.0]
[1731227935714,9.15006033,204.75,204.69,29.15006033]
[1731227942232,9.15006033,204.74,204.69,29.15006033]
[1731227942430,9.15006033,204.74,204.69,20.0]
[1731227944611,9.15006033,204.72,204.68,9.20878668]
[1731227945631,0.12549,204.77,204.68,9.20878668]
[1731227945843,9.15006033,204.73,204.69,20.0]
[1731227946339,9.15006033,204.75,204.69,29.15006033]
[1731227947318,9.15006033,204.74,204.69,20.0]
[1731227948113,9.15006033,204.73,204.69,20.0]
[1731227949020,9.15006033,204.72,204.69,20.0]
[1731227949222,9.15006033,204.7,204.68,9.20878668]
[1731227949424,9.15006033,204.69,204.55,19.0779]
[1731227949624,9.15006033,204.65,204.59,9.15006033]
[1731227949934,9.15006033,204.67,204.61,9.15006033]
[1731227950119,9.15006033,204.67,204.61,14.91947255]
[1731227950320,9.15006033,204.68,204.62,9.15006033]
[1731227950514,9.15006033,204.69,204.63,9.15006033]
[1731227950719,9.15006033,204.69,204.64,20.0]
[1731227951328,9.15006033,204.7,204.65,20.0]
[1731227951839,9.15006033,204.7,204.65,29.15006033]
[1731227952028,9.15006033,204.71,204.65,29.15006033]
[1731227954520,9.15006033,204.69,204.63,29.15006033]
[1731227954726,9.15006033,204.68,204.63,20.0]
[1731227955427,9.15006033,204.69,204.63,29.15006033]
[1731227955623,9.15006033,204.69,204.63,20.0]
[1731227955940,9.15006033,204.67,204.63,20.0]
[1731227956928,9.15006033,204.67,204.63,24.09287757]
[1731227957739,9.15006033,204.66,204.63,24.09287757]
[1731227958935,9.15006033,204.66,204.63,4.09287757]
[1731227959140,9.15006033,204.66,204.61,20.0]
[1731227959444,9.15006033,204.67,204.61,9.15006033]
[1731227959734,9.15006033,204.67,204.62,20.0]
[1731227959937,24.002374,204.71,204.57,5.76941222]
[1731227959938,9.15006033,204.64,204.57,14.91947255]
[1731227960128,9.15006033,204.64,204.57,19.05568119]
[1731227960944,23.902374,204.69,204.58,9.15006033]
[1731227961238,9.15006033,204.65,204.59,29.15006033]
[1731227962125,0.09999656,204.71,204.59,29.15006033]
[1731227962324,9.15006033,204.67,204.61,29.15006033]
[1731227962536,9.15006033,204.66,204.61,20.0]
[1731227962732,9.15006033,204.65,204.61,20.0]
[1731227963524,9.15006033,204.66,204.61,20.0]
[1731227964335,9.15006033,204.68,204.63,20.0]
[1731227965867,0.12549,204.7,204.63,20.0]
[1731227965868,9.15006033,204.69,204.63,9.15006033]
[1731227966143,9.15006033,204.69,204.64,20.0]
[1731227966325,9.27555033,204.7,204.64,9.15006033]
[1731227966929,9.15006033,204.69,204.63,9.15006033]
[1731227967126,9.15006033,204.69,204.64,20.0]
[1731227970242,9.15006033,204.67,204.57,4.13620864]
[1731227970452,0.12549,204.7,204.63,9.15006033]
[1731227970655,9.15006033,204.69,204.63,9.15006033]
[1731227970947,0.12549,204.7,204.64,29.15006033]
[1731227971154,9.27555033,204.7,204.64,29.15006033]
[1731227971446,0.12549,204.7,204.64,29.15006033]
[1731227971649,9.27555033,204.7,204.64,29.15006033]
[1731227971838,0.12549,204.7,204.65,9.15006033]
[1731227972232,0.12549,204.7,204.66,20.0]
[1731227972944,9.27555033,204.7,204.64,9.15006033]
[1731227973255,9.27555033,204.7,204.65,20.0]
[1731227974245,0.12549,204.7,204.65,29.15006033]
[1731227974553,9.27555033,204.7,204.65,29.15006033]
[1731227976650,9.27555033,204.7,204.65,20.0]
[1731227977031,9.27555033,204.7,204.65,24.05917817]
[1731227977626,9.15006033,204.67,204.65,4.05917817]
[1731227977836,9.15006033,204.66,204.6,9.15006033]
[1731227978556,9.15006033,204.65,204.59,9.15006033]
[1731227979450,9.15006033,204.66,204.6,9.15006033]
[1731227979635,9.15006033,204.66,204.61,20.0]
[1731227979954,0.12549,204.7,204.61,20.0]
[1731227980156,9.15006033,204.67,204.61,20.0]
[1731227980655,0.12549,204.66,204.61,20.0]
[1731227980872,33.05243433,204.66,204.61,20.0]
[1731227981358,23.902374,204.66,204.62,9.15006033]
[1731227981739,23.902374,204.67,204.62,9.15006033]
[1731227982250,0.12549,204.65,204.59,20.0]
[1731227982554,23.902374,204.63,204.59,20.0]
[1731227983543,0.12549,204.64,204.59,20.0]
[1731227985833,23.776884,204.63,204.59,20.0]
[1731227986452,0.12549,204.62,204.58,4.20338485]
[1731227986652,0.12549,204.62,204.57,9.15006033]
[1731227986845,9.15006033,204.61,204.52,5.76941222]
[1731227987047,9.00797126,204.61,204.55,9.15006033]
[1731227987247,23.902374,204.6,204.55,9.15006033]
[1731227987843,23.902374,204.6,204.56,20.0]
[1731227988378,23.902374,204.6,204.56,9.15006033]
[1731227988750,23.902374,204.61,204.57,20.0]
[1731227989146,23.776884,204.65,204.58,9.15006033]
[1731227989353,23.902374,204.63,204.59,9.15006033]
[1731227989549,0.12549,204.63,204.59,9.15006033]
[1731227990561,0.12549,204.64,204.58,9.15006033]
[1731227990970,9.27555033,204.64,204.58,9.15006033]
[1731227991263,0.12549,204.62,204.58,9.15006033]
[1731227991766,0.12549,204.62,204.59,9.15006033]
[1731227992064,0.12549,204.64,204.58,9.15006033]
[1731227992267,9.27555033,204.64,204.58,9.15006033]
[1731227992571,0.12549,204.62,204.58,9.15006033]
[1731227993948,0.12549,204.62,204.57,9.15006033]
[1731227994242,9.27555033,204.62,204.57,20.0]
[1731227995366,0.12549,204.6,204.56,20.0]
[1731227996369,0.12549,204.6,204.56,9.15006033]
[1731227996546,0.12549,204.6,204.57,20.0]
[1731228000358,23.902374,204.62,204.57,9.15006033]
[1731228000956,23.902374,204.62,204.53,24.14379115]
[1731228001369,23.902374,204.62,204.57,9.15006033]
[1731228001776,23.902374,204.62,204.58,9.15006033]
[1731228002265,23.902374,204.63,204.58,9.15006033]
[1731228005456,33.05243433,204.63,204.57,9.15006033]
[1731228006348,23.902374,204.63,204.58,9.15006033]
[1731228007071,33.05243433,204.63,204.57,9.15006033]
[1731228007461,0.12549,204.61,204.53,24.14379115]
[1731228007665,0.12549,204.61,204.53,4.14379115]
[1731228007666,9.15006033,204.57,204.53,4.14379115]
[1731228007859,9.27555033,204.56,204.51,9.15006033]
[1731228008268,0.12549,204.54,204.46,9.95902458]
[1731228008662,15.2545,204.53,204.49,9.15006033]
[1731228008868,0.12549,204.52,204.46,4.18961236]
[1731228009058,0.12549,204.52,204.47,9.15006033]
[1731228009256,0.12549,204.52,204.4,5.76941222]
[1731228009257,23.902374,204.52,204.4,5.76941222]